{"text_format":"3","workbook":"xlsx","n_sheets":1,"sheets":["форма 5_Интернет"],"not_rendered":{"defined_names":1},"read":"whole","date_system":"1900"}

{"sheet":"форма 5_Интернет","index":0,"n_rows":27,"n_cols":25,"rows_kept":27,"merged":[[1,0,1,8],[2,0,2,8],[3,0,3,8],[4,0,4,8],[5,0,5,8],[6,0,6,8],[7,0,7,8],[8,0,8,8],[9,0,9,8],[10,0,10,8],[11,0,11,24],[12,0,12,24],[13,0,13,24],[14,0,17,0],[14,1,15,6],[14,7,14,24],[15,7,15,12],[15,13,15,18],[15,19,15,24],[16,1,16,2],[16,3,16,4],[16,5,16,6],[16,7,16,8],[16,9,16,10],[16,11,16,12],[16,13,16,14],[16,15,16,16],[16,17,16,18],[16,19,16,20],[16,21,16,22],[16,23,16,24],[19,0,19,24]]}
{"$rows_empty":11}
["Приложение"]
["Максимальная скорость доступа к Интернету*"]
["Форма № 5"]
["Наименования показателя","Максимальная скорость доступа к  Интернету ",{"$nulls":5},"В том числе по типам доступа: "]
[{"$nulls":7},"максимальная скорость фиксированного проводного доступа к Интернету (модемное подключение через коммутируемую телефонную линию,  ISDN связь,  цифровая абонентская    линия (технология  xDSL и т.д.), другая кабельная связь (включая выделенные линии, оптоволокно и др.)",{"$nulls":5},"   максимальная скорость фиксированного беспроводного доступа к Интернету (спутниковая связь, фиксированная беспроводная связь (например, Wi-Fi, WiMAX)",{"$nulls":5},"   максимальная скорость мобильного доступа к Интернету (через любое устройство: портативный компьютер или мобильный сотовый телефон и т. д.)"]
[null,"образовательная организация (юридическое лицо)",null,"филиал образовательной организации (не юридическое лицо)",null,"отдельно стоящее здание образовательной организации",null,"образовательная организация (юридическое лицо)",null,"филиал образовательной организации (не юридическое лицо)",null,"отдельно стоящее здание образовательной организации",null,"образовательная организация (юридическое лицо)",null,"филиал образовательной организации (не юридическое лицо)",null,"отдельно стоящее здание образовательной организации",null,"образовательная организация (юридическое лицо)",null,"филиал образовательной организации (не юридическое лицо)",null,"отдельно стоящее здание образовательной организации"]
[null,"город","село","город","село","город","село","город","село","город","село","город","село","город","село","город","село","город","село","город","село","город","село","город","село"]
[1,2,3,4,5,6,7,8,9,10,11,12,13,14,15,16,17,18,19,20,21,22,23,24,25]
["Общеобразовательные организации*"]
["Всего",{"$f":"SUM(B22:B25)","v":0},{"$f":"SUM(C22:C25)","v":0},{"$f":"SUM(D22:D25)","v":0},0,0,{"$f":"SUM(G22:G25)","v":0},{"$f":"SUM(H22:H25)","v":0},0,0,0,0,0,0,0,0,0,0,0,0,0,0,0,0,0]
["этот вид доступа не используется"]
["ниже 50 Мбит/сек"]
["50 - 99 Мбит/сек"]
["100 и выше Мбит/сек"]
[]
["*  заполняется в соответствии с указаниями по заполнению формы федерального статистического наблюдения ОО-2, утвержденными приказом Росстата от 15 ноября 2021 г. № 804"]